bitfinex/quotes_SOLUSD_20250315
["timestamp","ask_amount","ask_price","bid_price","bid_amount"]
[1742044770286,20.44719265,135.27,135.23,7.3948]
[1742044773078,20.41719265,135.24,135.21,7.3959]
[1742044773284,20.41719265,135.23,135.21,7.3959]
[1742044773474,20.41719265,135.22,135.19,7.3969]
[1742044773789,20.41719265,135.21,135.19,7.3969]
[1742044773982,20.41719265,135.22,135.19,7.3969]
[1742044774366,20.41719265,135.23,135.19,7.3969]
[1742044775080,20.41719265,135.24,135.19,46.30649265]
[1742044775275,20.41719265,135.24,135.19,124.65945509]
[1742044775890,20.44719265,135.27,135.21,20.41719265]
[1742044776066,20.41719265,135.26,135.21,20.41719265]
[1742044776266,20.44719265,135.27,135.22,20.41719265]
[1742044776485,20.44719265,135.27,135.23,6.38]
[1742044777182,20.44719265,135.27,135.24,7.3942]
[1742044777789,0.03,135.27,135.24,7.3942]
[1742044777968,20.44719265,135.27,135.24,7.3942]
[1742044778382,20.41719265,135.26,135.24,7.3942]
[1742044778564,20.41719265,135.26,135.23,13.7746]
[1742044779787,20.44719265,135.27,135.23,13.7746]
[1742044780085,0.03,135.27,135.23,52.67879265]
[1742044780768,20.44719265,135.27,135.23,32.2616]
[1742044781175,20.41719265,135.26,135.23,13.7746]
[1742044787689,20.41719265,135.25,135.23,6.38]
[1742044788895,20.41719265,135.26,135.23,6.38]
[1742044789072,20.41719265,135.25,135.23,6.38]
[1742044790487,13.05854103,135.25,135.23,6.38]
[1742044792586,13.05854103,135.25,135.21,7.3957]
[1742044796074,13.05854103,135.26,135.21,7.3957]
[1742044796811,13.08854103,135.25,135.21,7.3957]
[1742044797180,0.03,135.25,135.21,25.8854]
[1742044798607,13.08854103,135.25,135.21,7.3957]
[1742044800488,13.05854103,135.24,135.21,7.3957]
[1742044800692,13.05854103,135.23,135.21,7.3957]
[1742044802003,13.08854103,135.25,135.2,25.8875]
[1742044802205,0.03,135.25,135.21,13.05854103]
[1742044804407,0.03,135.25,135.22,7.3953]
[1742044806523,0.03,135.25,135.22,38.94214103]
[1742044808519,0.03,135.25,135.24,7.3942]
[1742044814425,0.03,135.25,135.22,25.8836]
[1742044817857,0.03,135.25,135.22,7.3953]
[1742044818314,13.08854103,135.25,135.22,7.3953]
[1742044819009,13.05854103,135.23,135.19,0.063]
[1742044819200,13.05854103,135.23,135.2,7.3962]
[1742044819707,13.05854103,135.24,135.2,7.3962]
[1742044819905,13.08854103,135.25,135.2,7.3962]
[1742044820211,13.05854103,135.24,135.2,7.3962]
[1742044821725,0.03,135.25,135.21,13.05854103]
[1742044821924,0.03,135.25,135.2,38.94584103]
[1742044822806,0.03,135.25,135.21,13.05854103]
[1742044824327,0.03,135.25,135.22,7.3953]
[1742044824723,0.03,135.25,135.22,25.8836]
[1742044827219,0.03,135.25,135.22,7.3953]
[1742044828615,0.03,135.25,135.21,25.8852]
[1742044828807,0.03,135.25,135.21,38.94374103]
[1742044830212,0.03,135.25,135.23,7.3948]
[1742044830947,0.03,135.25,135.24,13.05854103]
[1742044831242,0.0001,135.25,135.24,31.70818989]
[1742044832226,0.0001,135.25,135.24,39.10238989]
[1742044834917,0.0001,135.25,135.24,117.45535233]
[1742044844724,0.0001,135.25,135.24,117.51835233]
[1742044847945,0.0001,135.27,135.26,31.70818989]
[1742044848131,0.0001,135.27,135.26,110.06115233]
[1742044850058,0.0001,135.27,135.26,117.45425233]
[1742044851551,0.0001,135.27,135.26,117.73857547]
[1742044855554,2.33e-05,135.3,135.28,20.494172]
[1742044855729,2.33e-05,135.3,135.29,45.41968989]
[1742044855934,2.33e-05,135.3,135.29,45.70401303]
[1742044856241,2.33e-05,135.3,135.29,45.41968989]
[1742044856441,2.33e-05,135.3,135.29,45.70401303]
[1742044856636,2.33e-05,135.3,135.29,45.41968989]
[1742044856843,2.33e-05,135.3,135.29,32.36114886]
[1742044859452,2.33e-05,135.3,135.29,45.41968989]
[1742044859651,2.33e-05,135.3,135.29,13.7115]
[1742044860248,2.33e-05,135.3,135.29,45.41968989]
[1742044860871,2.33e-05,135.3,135.29,124.05687547]
[1742044861044,0.03,135.34,135.3,111.90557547]
[1742044861248,0.03,135.34,135.33,31.99251303]
[1742044861445,0.03,135.34,135.33,110.34537547]
[1742044861952,0.03,135.34,135.33,117.73467547]
[1742044862151,0.0001,135.34,135.33,85.74216244]
[1742044862356,8e-05,135.34,135.33,117.73467547]
[1742044862744,11.4560978,135.4,135.33,125.71217547]
[1742044862952,11.4560978,135.4,135.39,31.99251303]
[1742044863148,0.03,135.42,135.4,18.64964886]
[1742044863366,0.03,135.42,135.4,31.70818989]
[1742044863741,0.03,135.42,135.4,13.05854103]
[1742044864270,0.03,135.42,135.4,20.44384103]
[1742044864565,0.03,135.42,135.4,31.70818989]
[1742044864770,0.03,135.42,135.4,13.05854103]
[1742044865160,0.03,135.42,135.41,0.28432314]
[1742044865477,0.03,135.42,135.41,13.34286417]
[1742044865847,0.03,135.42,135.41,13.05854103]
[1742044866559,0.03,135.42,135.41,99.08062661]
[1742044867074,0.03,135.42,135.41,110.06105233]
[1742044867967,0.03,135.42,135.41,91.41140347]
[1742044868158,0.03,135.42,135.41,97.79140347]
[1742044868568,0.03,135.42,135.41,123.82595233]
[1742044868767,1.6169,135.49,135.42,97.25683444]
[1742044869073,13.05854103,135.52,135.47,13.05854103]
[1742044869275,13.05854103,135.51,135.46,19.45854103]
[1742044870254,13.05854103,135.52,135.46,26.84064103]
[1742044871268,13.05854103,135.5,135.46,6.4]
[1742044872175,25.22417808,135.53,135.46,6.4]
[1742044875291,33.05854103,135.52,135.46,13.05854103]
[1742044875766,13.05854103,135.51,135.47,7.3817]
[1742044876867,13.05854103,135.51,135.46,7.3821]
[1742044877659,13.05854103,135.51,135.48,7.3811]
[1742044877861,33.05854103,135.52,135.48,7.3811]
[1742044879079,20.0,135.52,135.48,20.43964103]
[1742044879276,20.0,135.52,135.49,13.05854103]
[1742044879582,13.05854103,135.55,135.5,13.05854103]
[1742044879773,13.05854103,135.55,135.5,91.38140347]
[1742044881063,0.03,135.56,135.54,13.05854103]
[1742044881283,0.03,135.56,135.55,13.7773]
[1742044881781,0.03,135.56,135.55,6.4]
[1742044884467,0.03,135.56,135.52,14.69564103]
[1742044884763,0.03,135.56,135.52,6.42]
[1742044885168,13.08854103,135.56,135.52,6.42]
[1742044885363,13.08854103,135.56,135.5,286.72140347]
[1742044885364,13.05854103,135.55,135.5,286.72140347]
[1742044885579,13.05854103,135.55,135.51,6.42]
[1742044886380,13.05854103,135.54,135.51,6.42]
[1742044886684,13.05854103,135.53,135.51,6.42]
[1742044887171,0.03,135.56,135.52,13.05854103]
[1742044887371,0.03,135.56,135.54,13.05854103]
[1742044887573,0.03,135.56,135.52,85.70176244]
[1742044887574,0.03,135.56,135.55,19.49854103]
[1742044887779,0.03,135.56,135.55,116.75537547]
[1742044888068,0.03,135.56,135.55,84.76286244]
[1742044888268,0.03,135.56,135.55,97.82140347]
[1742044888687,0.03,135.56,135.55,84.76286244]
[1742044889388,0.03,135.56,135.55,6.44]
[1742044890770,20.33592965,135.56,135.53,78.32286244]
[1742044891783,0.03,135.56,135.53,85.70106244]
[1742044892774,0.03,135.56,135.53,78.32286244]
[1742044893183,0.03,135.56,135.53,85.70116244]
[1742044893594,0.03,135.56,135.53,7.3783]
[1742044894888,0.03,135.56,135.51,106.76589209]
[1742044895091,0.03,135.56,135.52,7.3789]
[1742044895477,20.30592965,135.54,135.51,78.32286244]
[1742044896082,20.30592965,135.54,135.5,7.3797]
[1742044896683,20.30592965,135.55,135.5,7.3797]
[1742044896886,20.30592965,135.55,135.5,27.68562965]
[1742044897074,20.30592965,135.55,135.5,7.3797]
[1742044898197,20.30592965,135.54,135.5,7.3797]
[1742044898692,0.03,135.56,135.5,7.3797]
[1742044898892,0.03,135.56,135.52,20.30592965]
[1742044899092,0.03,135.56,135.53,7.3784]
[1742044899878,20.33592965,135.56,135.52,7.3788]
[1742044900414,0.03,135.56,135.52,27.68472965]
[1742044901788,0.03,135.56,135.52,46.13212965]
[1742044901994,0.03,135.56,135.53,20.30592965]
[1742044902779,0.03,135.56,135.52,124.45499209]
[1742044904099,0.03,135.56,135.53,20.30592965]
[1742044905290,0.03,135.56,135.55,20.30592965]
[1742044906090,0.03,135.56,135.55,27.68322965]
[1742044906487,0.03,135.56,135.55,7.3773]
[1742044906883,0.03,135.56,135.54,7.3777]
[1742044907805,0.03,135.56,135.53,0.063]
[1742044907999,20.33592965,135.56,135.53,0.063]
[1742044909108,20.30592965,135.54,135.53,0.063]
[1742044909498,0.03,135.56,135.53,0.063]
[1742044910911,20.33592965,135.56,135.53,0.063]
[1742044911106,20.30592965,135.55,135.53,0.063]
[1742044911894,20.33592965,135.56,135.53,0.063]
[1742044913099,20.30592965,135.55,135.53,0.063]
[1742044913708,0.03,135.56,135.53,0.063]
[1742044913912,0.03,135.56,135.53,20.36892965]
[1742044914210,0.03,135.56,135.53,0.063]
[1742044914407,20.33592965,135.56,135.53,0.063]
[1742044914587,0.03,135.56,135.53,0.063]
[1742044919609,0.03,135.56,135.55,20.30592965]
[1742044919816,0.03,135.56,135.53,0.063]
[1742044920114,0.03,135.56,135.54,7.3778]
[1742044920415,0.03,135.56,135.55,20.30592965]
[1742044920997,2.5094673,135.57,135.55,119.19986409]
[1742044921201,6.73e-05,135.57,135.56,39.23990165]
[1742044922123,6.73e-05,135.57,135.56,46.61670165]
[1742044922907,6.73e-05,135.57,135.56,124.93956409]
[1742044927318,6.73e-05,135.57,135.56,436.93956409]
[1742044927626,6.73e-05,135.57,135.56,124.93956409]
[1742044928813,6.73e-05,135.57,135.56,104.63363444]
[1742044929213,1.5456,135.67,135.57,18.933972]
[1742044929523,1.5456,135.67,135.57,97.25683444]
[1742044929902,20.30592965,135.66,135.6,20.30592965]
[1742044930105,20.30592965,135.62,135.6,78.32286244]
[1742044930306,19.30592965,135.62,135.58,7.3757]
[1742044931019,19.30592965,135.62,135.57,106.00479209]
[1742044931206,20.30592965,135.6,135.55,98.62879209]
[1742044931407,20.30592965,135.59,135.55,84.84286244]
[1742044931603,6.6588,135.63,135.55,105.14879209]
[1742044932000,20.30592965,135.6,135.55,105.14879209]
[1742044932809,20.30592965,135.62,135.57,20.30592965]
[1742044934226,20.30592965,135.63,135.57,20.30592965]
[1742044934430,20.30592965,135.63,135.58,27.68162965]
[1742044934835,20.30592965,135.64,135.59,20.30592965]
[1742044935945,20.30592965,135.6,135.56,84.84286244]
[1742044936112,20.30592965,135.6,135.56,6.52]
[1742044936311,20.30592965,135.6,135.55,27.68302965]
[1742044936834,27.68072965,135.6,135.55,27.68302965]
[1742044937022,27.68072965,135.6,135.54,273.48286244]
[1742044937023,20.30592965,135.57,135.54,78.32286244]
[1742044937329,20.30592965,135.57,135.53,0.063]
[1742044937511,14.0336,135.6,135.53,0.063]
[1742044937712,20.30592965,135.57,135.53,0.063]
[1742044937925,20.30592965,135.56,135.53,0.063]
[1742044938124,20.30592965,135.57,135.53,0.063]
[1742044938632,20.30592965,135.61,135.55,20.30592965]
[1742044938928,20.30592965,135.6,135.55,78.32286244]
[1742044939236,20.30592965,135.6,135.55,98.62879209]
[1742044939425,20.30592965,135.59,135.55,78.32286244]
[1742044939813,20.30592965,135.59,135.55,85.69996244]
[1742044940829,0.03,135.57,135.55,85.69996244]
[1742044941712,0.03,135.57,135.55,106.00589209]
[1742044945425,0.03,135.57,135.55,85.69996244]
[1742044946436,0.03,135.57,135.55,106.00589209]
[1742044947140,0.03,135.57,135.56,20.30592965]
[1742044947326,0.03,135.57,135.56,26.82592965]
[1742044948917,0.03,135.57,135.56,34.20272965]
[1742044949322,0.03,135.57,135.56,13.8968]
[1742044952042,0.03,135.57,135.53,20.36892965]
[1742044952342,20.33592965,135.57,135.54,7.3776]
[1742044953044,20.30592965,135.56,135.54,7.3776]
[1742044953440,20.30592965,135.56,135.53,7.4414]
[1742044953650,20.30592965,135.55,135.53,7.4414]
[1742044954338,0.03,135.57,135.47,7.4445]
[1742044954339,20.30592965,135.54,135.47,7.4445]
[1742044954640,20.30592965,135.49,135.47,7.4445]
[1742044954844,20.30592965,135.49,135.47,0.063]
[1742044957152,20.30592965,135.49,135.47,0.063]
[1742044958233,20.30592965,135.48,135.47,0.063]
[1742044961031,27.68702965,135.48,135.47,0.063]
[1742044961843,29.34502965,135.48,135.47,0.063]
[1742044962036,20.0,135.45,135.42,0.063]
[1742044962237,40.30592965,135.43,135.42,0.063]
[1742044963052,20.0,135.4,135.39,0.063]
[1742044963258,40.30592965,135.4,135.39,0.063]
[1742044964841,20.0,135.42,135.39,0.063]
[1742044965068,40.30592965,135.42,135.39,0.063]
[1742044965642,20.30592965,135.43,135.39,0.063]
[1742044966551,40.30592965,135.43,135.39,6.643]
[1742044966751,20.0,135.43,135.39,26.94892965]
[1742044966951,20.30592965,135.45,135.4,27.69142965]
[1742044967156,1.658,135.47,135.4,27.69142965]
[1742044967157,20.30592965,135.46,135.4,27.69142965]
[1742044967867,20.0,135.45,135.4,46.15522965]
[1742044968369,40.30592965,135.45,135.4,46.15522965]
[1742044970350,20.30592965,135.46,135.41,20.30592965]
[1742044970763,20.30592965,135.45,135.4,46.15522965]
[1742044971668,20.30592965,135.46,135.41,20.30592965]
[1742044971967,20.30592965,135.46,135.42,7.3844]
[1742044973576,20.30592965,135.45,135.41,7.3849]
[1742044975276,20.30592965,135.46,135.41,7.3849]
[1742044975497,20.30592965,135.46,135.41,25.8473]
[1742044975678,20.30592965,135.46,135.41,46.15322965]
[1742044975991,20.0,135.49,135.41,124.47609209]
[1742044976201,20.30592965,135.48,135.43,20.30592965]
[1742044976386,20.30592965,135.48,135.44,6.56]
[1742044976587,20.30592965,135.47,135.44,6.56]
[1742044976987,0.03,135.46,135.44,6.56]
[1742044977396,0.03,135.46,135.45,7.3827]
[1742044979099,0.03,135.46,135.44,13.9432]
[1742044979100,20.0,135.45,135.44,13.9432]
[1742044979288,40.30592965,135.45,135.41,78.32286244]
[1742044979488,20.30592965,135.44,135.42,7.3842]
[1742044980095,40.30592965,135.45,135.42,7.3842]
[1742044980582,20.0,135.45,135.42,7.3842]
[1742044981203,20.0,135.45,135.42,25.8452]
[1742044984001,20.0,135.45,135.42,7.3842]
[1742044984194,40.30592965,135.45,135.42,7.3842]
[1742044985696,20.30592965,135.44,135.41,85.70766244]
[1742044986000,40.30592965,135.42,135.4,7.4483]
[1742044987295,40.30592965,135.42,135.4,0.063]
[1742044987482,20.30592965,135.43,135.4,0.063]
[1742044987687,40.30592965,135.43,135.4,0.063]
[1742044987889,20.30592965,135.45,135.4,0.063]
[1742044988298,0.03,135.46,135.41,20.30592965]
[1742044988501,0.03,135.46,135.42,28.35162965]
[1742044989104,0.03,135.46,135.43,7.3838]
[1742044989314,0.03,135.45,135.43,7.3838]
[1742044989490,0.03,135.45,135.43,27.68972965]
[1742044989690,0.03,135.45,135.43,34.18402965]
[1742044990211,0.03,135.45,135.44,20.30592965]
[1742044990410,0.03,135.45,135.43,112.50689209]
[1742044994923,0.03,135.46,135.44,20.30592965]
[1742044995110,0.03,135.46,135.45,20.30592965]
[1742044995293,0.0001,135.46,135.45,124.94546409]
[1742044995489,0.0001,135.46,135.45,145.25139374]
[1742044997396,0.0001,135.46,135.45,146.75709374]
[1742044998219,0.0001,135.46,135.45,458.75709374]
[1742044999423,0.03,135.57,135.49,6.0194]
[1742044999723,0.03,135.57,135.52,20.30592965]
[1742044999912,20.33592965,135.57,135.52,98.62879209]
[1742045000909,20.33592965,135.57,135.53,7.3784]
[1742045003121,20.33592965,135.57,135.53,13.8784]
[1742045003938,0.03,135.57,135.53,34.18432965]
[1742045004423,0.03,135.57,135.54,20.30592965]
[1742045004932,0.03,135.57,135.55,7.3773]
[1742045006015,20.30592965,135.56,135.53,84.82286244]
[1742045006330,20.30592965,135.56,135.53,6.5]
[1742045006508,20.30592965,135.55,135.53,6.5]
[1742045007509,20.30592965,135.56,135.53,6.5]
[1742045007926,20.30592965,135.56,135.52,13.8789]
[1742045010229,20.30592965,135.56,135.51,79.84936244]
[1742045010230,7.3769,135.56,135.48,13.8811]
[1742045010410,20.30592965,135.53,135.48,112.50989209]
[1742045011104,20.30592965,135.53,135.49,6.5]
[1742045011309,20.30592965,135.52,135.49,6.5]
[1742045011917,20.30592965,135.53,135.49,6.5]
[1742045012224,20.30592965,135.53,135.5,7.38]
[1742045015743,20.30592965,135.52,135.49,13.8804]
[1742045016323,20.30592965,135.51,135.49,6.5]
[1742045017033,20.30592965,135.5,135.49,6.5]
[1742045017231,20.30592965,135.5,135.46,98.20426244]
[1742045017435,20.30592965,135.49,135.46,92.18486244]
[1742045017631,20.30592965,135.5,135.46,92.18486244]
[1742045020244,20.30592965,135.51,135.46,112.49079209]
[1742045021747,0.03,135.56,135.5,21.80672965]
[1742045021934,20.33592965,135.56,135.5,21.80672965]
[1742045022135,20.30592965,135.55,135.5,21.80672965]
[1742045022642,20.30592965,135.54,135.5,1.5008]
[1742045022839,20.30592965,135.54,135.51,7.3795]
[1742045024130,0.03,135.56,135.51,7.3795]
[1742045024448,20.30592965,135.54,135.51,7.3795]
[1742045025148,20.30592965,135.55,135.51,7.3795]
[1742045028449,0.03,135.56,135.51,52.59422965]
[1742045029666,20.33592965,135.56,135.51,13.8395]
[1742045029836,20.30592965,135.53,135.51,6.46]
[1742045030645,20.30592965,135.52,135.48,85.70386244]
[1742045030853,20.30592965,135.53,135.48,46.13982965]
[1742045031058,0.03,135.56,135.48,46.13982965]
[1742045031235,20.30592965,135.53,135.48,124.46269209]
[1742045031638,20.30592965,135.53,135.48,104.15676244]
[1742045035049,20.30592965,135.52,135.48,104.15676244]
[1742045038259,13.0078015,135.52,135.48,104.15676244]
[1742045038468,13.0078015,135.5,135.48,85.70386244]
[1742045038650,13.0078015,135.5,135.48,7.381]
[1742045039359,13.0078015,135.5,135.47,7.3817]
[1742045041550,13.0078015,135.48,135.46,85.76806244]
[1742045041951,13.0078015,135.48,135.46,78.38586244]
[1742045042158,13.0078015,135.48,135.46,85.76796244]
[1742045042466,13.0078015,135.48,135.46,78.38586244]
[1742045043041,13.0078015,135.48,135.46,0.063]
[1742045044449,13.0078015,135.47,135.46,0.063]
[1742045047467,29.02653509,135.56,135.46,13.21296307]
[1742045047676,24.63123509,135.56,135.49,13.0078015]
[1742045047859,35.34206845,135.55,135.49,13.0078015]
[1742045048260,13.0078015,135.54,135.49,13.0078015]
[1742045049663,13.0078015,135.54,135.5,7.38]
[1742045050278,40.31820921,135.54,135.5,7.38]
[1742045050466,40.31820921,135.53,135.5,7.38]
[1742045051280,20.31820921,135.51,135.49,7.3804]
[1742045051454,20.31820921,135.52,135.49,7.3804]
[1742045051655,20.31820921,135.52,135.48,7.3811]
[1742045052488,40.31820921,135.53,135.48,46.15220921]
[1742045052679,40.31820921,135.54,135.49,20.31820921]
[1742045053859,40.31820921,135.54,135.5,7.38]
[1742045054470,40.31820921,135.54,135.47,14.0904]
[1742045054471,20.31820921,135.51,135.47,14.0904]
[1742045054679,20.31820921,135.49,135.47,8.9295]
[1742045054860,20.31820921,135.51,135.47,7.3812]
[1742045055065,20.31820921,135.52,135.47,7.3812]
[1742045055273,20.31820921,135.51,135.47,7.3812]
[1742045058188,20.31820921,135.52,135.47,27.69940921]
[1742045060084,20.31820921,135.51,135.46,46.21900921]
[1742045062177,20.31820921,135.5,135.46,7.4452]
[1742045062366,20.31820921,135.49,135.46,7.4452]
[1742045063086,40.31820921,135.5,135.46,7.4452]
[1742045066078,20.31820921,135.48,135.46,0.063]
[1742045067486,20.31820921,135.49,135.46,0.063]
[1742045068289,40.31820921,135.5,135.46,0.063]
[1742045069086,20.31820921,135.49,135.46,0.063]
[1742045069490,40.31820921,135.5,135.46,0.063]
[1742045072395,33.01266106,135.5,135.46,0.063]
[1742045074592,13.01266106,135.49,135.46,0.063]
[1742045075091,0.03,135.52,135.47,13.01266106]
[1742045075296,0.03,135.52,135.48,20.39376106]
[1742045077091,0.03,135.52,135.49,13.01266106]
[1742045077678,0.03,135.52,135.48,20.39376106]
[1742045077874,20.03,135.52,135.48,20.39376106]
[1742045080097,0.03,135.52,135.48,20.39376106]
[1742045083989,0.03,135.52,135.49,13.01266106]
[1742045085385,0.03,135.52,135.5,7.38]
[1742045087502,0.03,135.52,135.49,7.3806]
[1742045089629,13.01266106,135.51,135.47,7.3817]
[1742045090305,13.01266106,135.49,135.47,7.3817]
[1742045090511,13.01266106,135.48,135.46,7.445]
[1742045090710,13.01266106,135.49,135.46,7.445]
[1742045091623,13.01266106,135.49,135.46,0.063]
[1742045095312,7.3795,135.51,135.46,0.063]
[1742045095511,13.01266106,135.49,135.46,0.063]
[1742045098121,7.3796,135.51,135.46,0.063]
[1742045098122,13.01266106,135.48,135.46,0.063]
[1742045098325,13.01266106,135.49,135.46,0.063]
[1742045098936,18.64964886,135.51,135.46,0.063]
[1742045099118,33.01266106,135.49,135.46,0.063]
[1742045103017,20.0,135.49,135.46,0.063]
[1742045103422,33.01266106,135.49,135.46,0.063]
[1742045105120,13.01266106,135.48,135.46,0.063]
[1742045105327,20.39436106,135.47,135.46,0.063]
[1742045105938,40.39436106,135.47,135.46,0.063]
[1742045106817,59.32833306,135.47,135.46,0.063]
[1742045107927,39.32833306,135.47,135.46,0.063]
[1742045109842,39.32833306,135.47,135.44,0.063]
[1742045109843,20.574472,135.46,135.44,0.063]
[1742045110037,13.01266106,135.42,135.41,0.063]
[1742045110740,20.0,135.42,135.41,0.063]
[1742045111049,33.01266106,135.42,135.41,0.063]
[1742045111219,40.39706106,135.42,135.41,0.063]
[1742045112344,59.33103306,135.42,135.41,0.063]
[1742045112524,33.01266106,135.42,135.41,0.063]
[1742045112724,20.0,135.42,135.41,0.063]
[1742045113944,33.01266106,135.42,135.41,0.063]
[1742045114152,40.39706106,135.42,135.41,0.063]
[1742045114457,33.01266106,135.42,135.41,0.063]
[1742045114620,40.39706106,135.42,135.41,0.063]
[1742045115928,33.01266106,135.42,135.41,0.063]
[1742045116123,26.317772,135.44,135.41,0.063]
[1742045116124,20.0,135.44,135.41,0.063]
[1742045116529,20.0,135.44,135.41,7.4479]
[1742045118744,20.0,135.44,135.41,0.063]
[1742045119343,18.0,135.44,135.41,0.063]
[1742045120733,13.01266106,135.44,135.41,0.063]
[1742045121341,20.0,135.43,135.41,0.063]
[1742045122058,13.01266106,135.44,135.41,0.063]
[1742045122262,13.01266106,135.43,135.41,0.063]
[1742045122950,33.01266106,135.44,135.41,0.063]
[1742045125131,40.39616106,135.44,135.41,0.063]
[1742045125338,13.01266106,135.42,135.41,0.063]
[1742045126237,20.0,135.42,135.41,0.063]
[1742045126538,33.01266106,135.42,135.41,0.063]
[1742045128056,13.01266106,135.43,135.41,0.063]
[1742045128272,20.0,135.42,135.41,0.063]
[1742045130365,20.0,135.43,135.41,0.063]
[1742045130953,20.0,135.42,135.41,0.063]
[1742045131150,7.3827,135.45,135.41,0.063]
[1742045131352,20.0,135.42,135.41,0.063]
[1742045132357,20.0,135.43,135.41,0.063]
[1742045132567,20.0,135.42,135.41,0.063]
[1742045133881,13.01266106,135.43,135.41,0.063]
[1742045134050,13.01266106,135.42,135.41,0.063]
[1742045135267,39.04670992,135.42,135.41,0.063]
[1742045136074,39.33103306,135.42,135.41,0.063]
[1742045142486,43.04112711,135.42,135.41,0.063]
[1742045145059,43.54112711,135.42,135.41,0.063]
[1742045146684,43.04112711,135.42,135.41,0.063]
[1742045146868,43.54112711,135.42,135.41,0.063]
[1742045147057,43.04112711,135.42,135.41,0.063]
[1742045147258,43.54112711,135.42,135.41,0.063]
[1742045147473,43.04112711,135.42,135.41,0.063]
[1742045147873,13.01266106,135.42,135.41,0.063]
[1742045148077,13.04266106,135.44,135.41,0.063]
[1742045148281,20.0,135.42,135.41,0.063]
[1742045149382,0.03,135.44,135.41,20.46056106]
[1742045149564,20.0,135.43,135.41,20.46056106]
[1742045150300,0.03,135.44,135.41,20.46056106]
[1742045150586,0.03,135.52,135.44,18.933972]
[1742045150765,0.03,135.52,135.48,13.01266106]
[1742045151084,20.0,135.5,135.48,13.01266106]
[1742045151380,20.0,135.5,135.48,20.39376106]
[1742045151588,20.0,135.5,135.47,26.75426106]
[1742045152288,20.0,135.51,135.47,26.68420789]
[1742045152856,20.32420789,135.5,135.47,6.36]
[1742045153671,20.32420789,135.51,135.47,6.36]
[1742045154088,40.35420789,135.52,135.47,26.68420789]
[1742045155495,20.32420789,135.51,135.47,6.36]
[1742045156589,40.32420789,135.51,135.47,6.36]
[1742045156997,20.32420789,135.5,135.47,6.36]
[1742045158199,20.35420789,135.49,135.47,6.36]
[1742045158402,0.03,135.49,135.47,6.36]
[1742045159776,0.03,135.49,135.47,34.06590789]
[1742045161098,0.03,135.52,135.49,0.28432314]
[1742045161398,0.03,135.52,135.51,20.32420789]
[1742045161777,0.03,135.52,135.51,27.70370789]
[1742045163434,0.03,135.52,135.51,339.70370789]
[1742045166711,0.03,135.52,135.51,27.70370789]
[1742045168211,0.03,135.55,135.51,65.08647989]
[1742045168407,0.03,135.55,135.54,20.32420789]
[1742045168609,20.03,135.57,135.54,20.32420789]
[1742045168816,0.03,135.57,135.55,28.53770789]
[1742045169217,0.03,135.57,135.55,15.5908]
[1742045170330,0.03,135.57,135.55,35.91500789]
[1742045171935,0.03,135.57,135.55,133.17184233]
[1742045172132,0.03,135.57,135.55,35.91500789]
[1742045172437,0.03,135.57,135.56,19.42879593]
[1742045172938,0.03,135.58,135.57,0.28432314]
[1742045173127,0.03,135.58,135.57,91.31165837]
[1742045173939,0.03,135.62,135.59,1.6482]
[1742045174134,0.03,135.62,135.61,12.98879593]
[1742045174333,0.03,135.62,135.61,20.27935278]
[1742045175040,0.03,135.62,135.61,27.65335278]
[1742045175728,0.03,135.63,135.62,26.84465278]
[1742045176035,0.03,135.63,135.62,105.16751522]
[1742045177028,0.03,135.63,135.62,112.54101522]
[1742045177235,0.03,135.63,135.62,119.04101522]
[1742045177740,0.03,135.63,135.62,119.06101522]
[1742045178324,0.03,135.63,135.62,111.68751522]
[1742045178725,0.03,135.63,135.62,98.60221522]
[1742045178921,0.03,135.63,135.62,105.12221522]
[1742045179129,0.03,135.63,135.62,112.49571522]